[Event "Polish Youth G16 Championship 2023"]
[Site "Jastrzebia Gora"]
[Date "2023.03.14"]
[Round "4.16"]
[White "Nieckarz, Maja"]
[Black "Ekner, Maria"]
[Result "1-0"]
[ECO "C45"]
[WhiteElo "1493"]
[BlackElo "1337"]
[Annotator "NA RC COMBH"]
[PlyCount "111"]
[EventDate "2023.03.11"]
[EventType "swiss"]
[EventCountry "POL"]
[SourceTitle "playchess.com"]
[Source "ChessBase"]
[SourceQuality "1"]
[TimeControl "40/5400+30:1800+30"]

1. e4 {[%emt 0:00:03]} e5 {[%emt 0:00:05]} 2. Nf3 {[%emt 0:00:06]} Nc6 {[%emt 0:00:09]} 3. d4 {[%emt 0:00:06]} exd4 {[%emt 0:00:24]} 4. Nxd4 {[%emt 0:00:07]} Bc5 {[%emt 0:00:23]} 5. Be3 {[%emt 0:00:53]} Qf6 {[%emt 0:01:23]} 6. c3 {[%emt 0:06:51]} Nge7 {[%emt 0:02:29]} 7. Bc4 {[%emt 0:00:58]} O-O {[%emt 0:02:32]} 8. O-O {[%emt 0:11:19]} Bb6 {[%emt 0:03:31]} 9. Na3 {[%emt 0:05:17]} d6 {[%emt 0:01:51]} 10. Qd2 {[%emt 0:02:15]} h6 {[%emt 0:02:16]} 11. Ndb5 {[%emt 0:05:53]} Qg6 {[%emt 0:05:19]} 12. Bxb6 {[%emt 0:01:48]} Bh3 {[%emt 0:01:04]} 13. f3 {[%emt 0:00:24]} cxb6 {[%emt 0:00:26]} 14. Kh1 {[%emt 0:00:57]} a6 {[%emt 0:03:42]} 15. gxh3 {[%emt 0:02:07]} axb5 {[%emt 0:00:24]} 16. Nxb5 {[%emt 0:00:25]} Rad8 {[%emt 0:00:38]} 17. Nc7 {[%emt 0:05:48]} Ne5 {[%emt 0:01:46]} 18. Bb3 {[%emt 0:00:48]} Qh5 {[%emt 0:00:38]} 19. Qg2 {[%emt 0:00:49]} N7g6 {[%emt 0:00:47]} 20. Nd5 {[%emt 0:00:29]} b5 {[%emt 0:00:47]} 21. f4 {[%emt 0:01:15]} Nd7 {[%emt 0:04:32]} 22. Rg1 {[%emt 0:00:55]} Nc5 {[%emt 0:04:42]} 23. f5 {[%emt 0:06:41]} Kh8 {[%emt 0:00:52]} 24. Nf4 {[%emt 0:04:21]} Qg5 {[%emt 0:01:31]} 25. Nxg6+ {[%emt 0:00:18]} fxg6 {[%emt 0:00:15]} 26. Qxg5 {[%emt 0:02:48]} hxg5 {[%emt 0:00:24]} 27. fxg6 {[%emt 0:00:27]} Nxe4 {[%emt 0:00:30]} 28. Bc2 {[%emt 0:01:48]} d5 {[%emt 0:02:59]} 29. Bxe4 {[%emt 0:01:16]} dxe4 {[%emt 0:00:06]} 30. Rxg5 {[%emt 0:00:19]} Rde8 {[%emt 0:03:12]} 31. Rg2 {[%emt 0:00:38]} e3 {[%emt 0:01:51]} 32. Re1 {[%emt 0:00:19]} Rf3 {[%emt 0:00:58]} 33. Rg3 {[%emt 0:01:02]} Rxg3 {[%emt 0:00:49]} 34. hxg3 {[%emt 0:00:05]} Re6 {[%emt 0:00:12]} 35. Kg2 {[%emt 0:00:04]} Rxg6 {[%emt 0:00:20]} 36. Rxe3 {[%emt 0:00:05]} Rd6 {[%emt 0:00:48]} 37. Kf3 {[%emt 0:00:28]} Rd2 {[%emt 0:01:00]} 38. Re2 {[%emt 0:00:10]} Rd6 {[%emt 0:01:00]} 39. Re5 {[%emt 0:00:19]} Rb6 {[%emt 0:00:27]} 40. a3 {[%emt 0:00:00]} g6 {[%emt 0:00:00]} 41. h4 {[%emt 0:01:30]} Kg7 {[%emt 0:01:04]} 42. Kf4 {[%emt 0:00:35]} Kf6 {[%emt 0:01:36]} 43. g4 {[%emt 0:00:22]} Kg7 {[%emt 0:00:53]} 44. Kg5 {[%emt 0:00:09]} Kf7 {[%emt 0:00:57]} 45. Kh6 {[%emt 0:00:56]} Kf6 {[%emt 0:00:25]} 46. Rg5 {[%emt 0:00:23]} Kf7 {[%emt 0:00:55]} 47. Kh7 {[%emt 0:00:14]} b4 {[%emt 0:04:07]} 48. axb4 {[%emt 0:00:30]} Rc6 {[%emt 0:00:16]} 49. b5 {[%emt 0:01:19]} Rd6 {[%emt 0:01:04]} 50. Rc5 {[%emt 0:00:33]} Re6 {[%emt 0:02:00]} 51. Rc7+ {[%emt 0:00:25]} Kf6 {[%emt 0:00:59]} 52. Rxb7 {[%emt 0:00:25]} g5 {[%emt 0:00:22]} 53. hxg5+ {[%emt 0:00:51]} Kxg5 {[%emt 0:00:20]} 54. b6 {[%emt 0:00:22]} Rh6+ {[%emt 0:00:16]} 55. Kg8 {[%emt 0:00:39]} Rg6+ {[%emt 0:00:03]} 56. Rg7 {[%emt 0:00:09]} 1-0

[Event "Polish Youth G16 Championship 2023"]
[Site "Jastrzebia Gora"]
[Date "2023.03.14"]
[Round "4.17"]
[White "Gajec, Roza"]
[Black "Pietryk, Joanna"]
[Result "1/2-1/2"]
[ECO "B13"]
[WhiteElo "1341"]
[BlackElo "1488"]
[Annotator "NA RC COMBH"]
[PlyCount "61"]
[EventDate "2023.03.11"]
[EventType "swiss"]
[EventCountry "POL"]
[SourceTitle "playchess.com"]
[Source "ChessBase"]
[SourceQuality "1"]
[TimeControl "40/5400+30:1800+30"]

1. e4 c6 2. d4 d5 3. exd5 cxd5 4. Bd3 Nc6 5. c3 Nf6 6. Bf4 Bg4 7. Qb3 Qc8 8. Nd2 e6 9. Ngf3 Be7 10. O-O O-O 11. h3 Bh5 12. Rfe1 a6 13. Ne5 Nxe5 14. Bxe5 Nd7 15. Bh2 Qc6 16. a4 Bg6 17. Bxg6 hxg6 18. Nf3 b5 19. Qc2 b4 20. Rac1 bxc3 21. bxc3 Nb6 22. a5 Nc4 23. Qa2 Bd6 24. Bxd6 Qxd6 25. Ne5 Nxe5 26. Rxe5 Rac8 27. Re2 Qc6 28. Rb2 Rb8 29. Rcb1 Qc7 30. Qa3 Rfc8 31. Rb6 1/2-1/2

[Event "Polish Youth G16 Championship 2023"]
[Site "Jastrzebia Gora"]
[Date "2023.03.14"]
[Round "4.18"]
[White "Niedorys, Karolina"]
[Black "Makarec, Anna"]
[Result "1/2-1/2"]
[ECO "C45"]
[WhiteElo "1458"]
[BlackElo "1271"]
[Annotator "NA RC COMBH"]
[PlyCount "106"]
[EventDate "2023.03.11"]
[EventType "swiss"]
[EventCountry "POL"]
[SourceTitle "playchess.com"]
[Source "ChessBase"]
[SourceQuality "1"]
[TimeControl "40/5400+30:1800+30"]

1. e4 e5 2. Nf3 Nc6 3. d4 exd4 4. Nxd4 Bc5 5. Nxc6 Qf6 6. Qf3 Qxf3 7. gxf3 bxc6 8. Bc4 Ne7 9. Nc3 d6 10. Ke2 Ng6 11. Be3 Bxe3 12. Kxe3 Ne5 13. Bb3 Be6 14. Ne2 a5 15. Nd4 Bd7 16. f4 Ng4+ 17. Kf3 O-O 18. Ba4 Nf6 19. Bxc6 Rab8 20. Bxd7 Nxd7 21. b3 Rfe8 22. Ne2 Nc5 23. Nc3 Rb4 24. Rhe1 Ne6 25. Ne2 g5 26. c3 Rb5 27. Nd4 Rc5 28. Nxe6 Rxe6 29. c4 Rf6 30. f5 Rh6 31. Kg3 Rh4 32. Rad1 a4 33. Rd5 Rc6 34. Ra5 axb3 35. axb3 Kg7 36. f3 Rb6 37. Re3 d5 38. f6+ Rxf6 39. Rxd5 Rh5 40. Re2 Rfh6 41. Rg2 Ra6 42. f4 Ra3 43. Rb5 h6 44. fxg5 hxg5 45. Rf2 f6 46. Rb7 Kg6 47. Rxc7 Rxb3+ 48. Kg2 Rh4 49. Re2 Rg4+ 50. Kf2 Rh3 51. Kf1 Rf3+ 52. Ke1 Rg1+ 53. Kd2 Ra1 1/2-1/2

[Event "Polish Youth G16 Championship 2023"]
[Site "Jastrzebia Gora"]
[Date "2023.03.14"]
[Round "4.19"]
[White "Nowak, Zuzanna"]
[Black "Kaczmarek, Paulina"]
[Result "1-0"]
[ECO "B50"]
[WhiteElo "1427"]
[BlackElo "1317"]
[Annotator "NA RC COMBH"]
[PlyCount "91"]
[EventDate "2023.03.11"]
[EventType "swiss"]
[EventCountry "POL"]
[SourceTitle "playchess.com"]
[Source "ChessBase"]
[SourceQuality "1"]
[TimeControl "40/5400+30:1800+30"]

1. e4 c5 2. Nf3 d6 3. c3 Nf6 4. e5 dxe5 5. Nxe5 Qc7 6. d4 e6 7. Be3 Bd6 8. f4 {[%emt 0:16:57]} Nd5 {[%emt 0:15:50]} 9. Qf3 {[%emt 0:05:07]} Nxe3 {[%emt 0:01:39]} 10. Qxe3 {[%emt 0:00:01]} O-O {[%emt 0:00:42]} 11. g3 {[%emt 0:18:19]} cxd4 {[%emt 0:06:01]} 12. cxd4 {[%emt 0:00:02]} f6 {[%emt 0:01:53]} 13. Nc4 {[%emt 0:07:57]} Rd8 {[%emt 0:02:11]} 14. Nc3 {[%emt 0:02:48]} Bb4 {[%emt 0:04:21]} 15. Bd3 {[%emt 0:02:32]} f5 {[%emt 0:17:29]} 16. O-O Bxc3 {[%emt 0:01:23]} 17. bxc3 {[%emt 0:08:26]} b5 {[%emt 0:00:30]} 18. Nd2 {[%emt 0:00:21]} Qxc3 {[%emt 0:02:09]} 19. Rac1 {[%emt 0:00:25]} Qxd4 {[%emt 0:02:36]} 20. Qxd4 {[%emt 0:00:02]} Rxd4 {[%emt 0:00:14]} 21. Rxc8+ {[%emt 0:00:10]} Kf7 {[%emt 0:00:35]} 22. Rf3 {[%emt 0:01:41]} a6 {[%emt 0:01:49]} 23. Nb3 Rd7 {[%emt 0:01:57]} 24. Bf1 {[%emt 0:06:37]} Rb7 {[%emt 0:02:05]} 25. Nc5 {[%emt 0:01:03]} Rb6 {[%emt 0:00:49]} 26. Rc7+ {[%emt 0:01:44]} Kf6 {[%emt 0:01:07]} 27. Rd3 {[%emt 0:00:46]} Rc6 {[%emt 0:03:43]} 28. Rxc6 {[%emt 0:02:17]} Nxc6 {[%emt 0:00:16]} 29. Rd6 {[%emt 0:00:08]} Nd8 {[%emt 0:01:21]} 30. Rxa6 {[%emt 0:01:24]} Rxa6 {[%emt 0:01:19]} 31. Nxa6 {[%emt 0:00:02]} g5 {[%emt 0:00:02]} 32. Bxb5 {[%emt 0:00:28]} e5 {[%emt 0:00:53]} 33. fxe5+ {[%emt 0:00:29]} Kxe5 {[%emt 0:00:08]} 34. Nb4 {[%emt 0:00:18]} Ne6 {[%emt 0:00:34]} 35. a4 {[%emt 0:00:36]} Kd6 {[%emt 0:00:36]} 36. Kf2 {[%emt 0:00:29]} Nd4 {[%emt 0:00:37]} 37. Bd3 {[%emt 0:01:41]} h6 {[%emt 0:01:16]} 38. Ke3 Ke5 {[%emt 0:00:47]} 39. a5 {[%emt 0:02:21]} f4+ {[%emt 0:00:09]} 40. gxf4+ {[%emt 0:00:00]} gxf4+ {[%emt 0:00:00]} 41. Kf2 {[%emt 0:00:27]} Kd6 {[%emt 0:01:35]} 42. a6 {[%emt 0:00:55]} Ne6 {[%emt 0:01:34]} 43. a7 {[%emt 0:00:26]} Nc7 {[%emt 0:00:01]} 44. Be4 {[%emt 0:00:10]} Ke5 {[%emt 0:01:08]} 45. Bf3 {[%emt 0:00:34]} Kd4 {[%emt 0:00:40]} 46. Na6 {[%emt 0:00:32]} 1-0

[Event "Polish Youth G16 Championship 2023"]
[Site "Jastrzebia Gora"]
[Date "2023.03.14"]
[Round "4.20"]
[White "Michalska, Anna-Maria"]
[Black "Butkiewicz, Hanna"]
[Result "1-0"]
[ECO "A22"]
[WhiteElo "1417"]
[BlackElo "1120"]
[Annotator "NA RC COMBH"]
[PlyCount "139"]
[EventDate "2023.03.11"]
[EventType "swiss"]
[EventCountry "POL"]
[SourceTitle "playchess.com"]
[Source "ChessBase"]
[SourceQuality "1"]
[TimeControl "40/5400+30:1800+30"]

1. c4 {[%emt 0:00:01]} e5 {[%emt 0:00:12]} 2. Nc3 {[%emt 0:00:06]} Nf6 {[%emt 0:00:28]} 3. g3 {[%emt 0:00:14]} d5 {[%emt 0:00:26]} 4. cxd5 {[%emt 0:00:33]} Nxd5 {[%emt 0:00:07]} 5. Bg2 {[%emt 0:00:07]} Be6 6. Qb3 {[%emt 0:03:05]} Nxc3 {[%emt 0:02:21]} 7. Qxc3 {[%emt 0:00:18]} c6 {[%emt 0:04:54]} 8. Qxe5 {[%emt 0:01:41]} Nd7 {[%emt 0:02:47]} 9. Qc3 Nf6 10. d3 {[%emt 0:02:49]} Qb6 {[%emt 0:03:17]} 11. a3 {[%emt 0:04:25]} Nd5 {[%emt 0:05:24]} 12. Bxd5 {[%emt 0:01:09]} cxd5 {[%emt 0:01:22]} 13. Be3 {[%emt 0:02:13]} Qb5 {[%emt 0:05:17]} 14. Nf3 {[%emt 0:01:25]} Rc8 {[%emt 0:03:07]} 15. Qd2 {[%emt 0:00:26]} Qa4 {[%emt 0:07:00]} 16. Rc1 {[%emt 0:02:40]} Rxc1+ {[%emt 0:02:35]} 17. Qxc1 {[%emt 0:00:08]} Be7 {[%emt 0:01:00]} 18. O-O {[%emt 0:00:41]} O-O {[%emt 0:02:01]} 19. Qd2 {[%emt 0:01:52]} Bf6 {[%emt 0:01:29]} 20. Bg5 {[%emt 0:00:13]} Bxg5 {[%emt 0:01:02]} 21. Nxg5 {[%emt 0:00:53]} Bd7 {[%emt 0:03:00]} 22. Rc1 {[%emt 0:00:24]} h6 {[%emt 0:01:36]} 23. Nf3 Re8 24. d4 {[%emt 0:02:12]} Bb5 {[%emt 0:03:34]} 25. e3 {[%emt 0:02:07]} Qa6 {[%emt 0:05:38]} 26. Kg2 {[%emt 0:12:48]} Bd3 {[%emt 0:02:37]} 27. Ne1 {[%emt 0:02:37]} Bf1+ {[%emt 0:01:50]} 28. Kg1 {[%emt 0:00:31]} Bh3 {[%emt 0:00:06]} 29. Ng2 {[%emt 0:02:19]} Bf5 {[%emt 0:03:11]} 30. Nh4 {[%emt 0:01:14]} Bh3 {[%emt 0:01:23]} 31. f3 {[%emt 0:00:50]} Qf6 {[%emt 0:04:28]} 32. Qf2 {[%emt 0:02:40]} Bd7 {[%emt 0:02:44]} 33. Ng2 Qb6 34. Nf4 {[%emt 0:01:40]} Bc6 {[%emt 0:03:50]} 35. h4 {[%emt 0:01:59]} Qb3 {[%emt 0:00:39]} 36. Rc3 {[%emt 0:00:59]} Qa2 {[%emt 0:04:40]} 37. Kg2 {[%emt 0:11:21]} Qb1 {[%emt 0:08:39]} 38. Nd3 {[%emt 0:01:17]} Bb5 {[%emt 0:01:45]} 39. Qd2 {[%emt 0:03:15]} a5 {[%emt 0:03:55]} 40. Nf4 {[%emt 0:00:00]} Qf1+ {[%emt 0:00:00]} 41. Kh2 {[%emt 0:10:32]} Qxf3 {[%emt 0:02:15]} 42. Qg2 {[%emt 0:01:17]} Qxg2+ {[%emt 0:05:14]} 43. Kxg2 {[%emt 0:00:09]} Bc6 {[%emt 0:00:20]} 44. Kf2 {[%emt 0:00:23]} g5 {[%emt 0:01:24]} 45. hxg5 {[%emt 0:00:33]} hxg5 {[%emt 0:00:05]} 46. Nd3 {[%emt 0:00:24]} Re6 {[%emt 0:00:55]} 47. Ne5 {[%emt 0:00:56]} Rf6+ {[%emt 0:02:20]} 48. Kg2 {[%emt 0:00:10]} Re6 {[%emt 0:00:40]} 49. Kf3 {[%emt 0:03:27]} f6 {[%emt 0:03:27]} 50. Nxc6 {[%emt 0:00:23]} bxc6 {[%emt 0:00:37]} 51. Rc5 {[%emt 0:00:14]} g4+ {[%emt 0:00:25]} 52. Kf2 {[%emt 0:00:37]} Kf8 {[%emt 0:00:19]} 53. Rxa5 {[%emt 0:00:10]} Ke8 {[%emt 0:00:10]} 54. Ra7 {[%emt 0:00:21]} f5 {[%emt 0:00:59]} 55. Rh7 {[%emt 0:01:01]} Kf8 {[%emt 0:00:30]} 56. b4 {[%emt 0:00:53]} Kg8 {[%emt 0:01:08]} 57. Rh5 {[%emt 0:00:19]} Rf6 {[%emt 0:00:38]} 58. Ke2 {[%emt 0:00:11]} Kg7 {[%emt 0:00:22]} 59. Kd3 {[%emt 0:00:33]} Rf8 {[%emt 0:00:59]} 60. Rh1 {[%emt 0:00:37]} Ra8 {[%emt 0:00:08]} 61. Ra1 {[%emt 0:01:01]} Rh8 {[%emt 0:00:46]} 62. a4 {[%emt 0:06:13]} Ra8 {[%emt 0:00:44]} 63. a5 {[%emt 0:00:23]} Kf7 {[%emt 0:00:28]} 64. Rh1 {[%emt 0:00:47]} Kg7 {[%emt 0:00:38]} 65. Rc1 {[%emt 0:01:15]} Ra6 {[%emt 0:00:07]} 66. Kc3 Kf7 {[%emt 0:00:23]} 67. Kb3 {[%emt 0:00:29]} Ke7 {[%emt 0:00:10]} 68. Rh1 {[%emt 0:00:23]} Ra8 {[%emt 0:00:13]} 69. Rh6 {[%emt 0:00:14]} Rc8 {[%emt 0:00:44]} 70. Ka4 {[%emt 0:00:20]} 1-0

[Event "Polish Youth G16 Championship 2023"]
[Site "Jastrzebia Gora"]
[Date "2023.03.14"]
[Round "4.21"]
[White "Zgoda, Aleksandra"]
[Black "Danek, Wiktoria"]
[Result "1-0"]
[ECO "D00"]
[WhiteElo "1308"]
[BlackElo "1161"]
[Annotator "NA RC COMBH"]
[PlyCount "81"]
[EventDate "2023.03.11"]
[EventType "swiss"]
[EventCountry "POL"]
[SourceTitle "playchess.com"]
[Source "ChessBase"]
[SourceQuality "1"]
[TimeControl "40/5400+30:1800+30"]

1. d4 d5 {[%emt 0:00:08]} 2. Bf4 {[%emt 0:00:14]} Bf5 {[%emt 0:00:33]} 3. e3 {[%emt 0:00:16]} e6 {[%emt 0:00:43]} 4. Nf3 {[%emt 0:00:29]} Nf6 {[%emt 0:01:46]} 5. c4 {[%emt 0:03:00]} c6 {[%emt 0:16:25]} 6. Qb3 {[%emt 0:02:48]} Qb6 {[%emt 0:01:33]} 7. c5 {[%emt 0:01:09]} Qxb3 {[%emt 0:05:18]} 8. axb3 {[%emt 0:00:30]} Nbd7 {[%emt 0:04:56]} 9. h3 {[%emt 0:03:40]} Be7 {[%emt 0:07:36]} 10. Nbd2 {[%emt 0:05:36]} O-O 11. b4 {[%emt 0:09:14]} Ne4 {[%emt 0:10:56]} 12. Nb3 {[%emt 0:04:32]} Bd8 {[%emt 0:13:56]} 13. Be2 {[%emt 0:15:53]} Re8 {[%emt 0:02:49]} 14. b5 {[%emt 0:11:18]} f6 {[%emt 0:08:00]} 15. Nh4 {[%emt 0:18:54]} Bg6 {[%emt 0:03:40]} 16. Nxg6 {[%emt 0:02:17]} hxg6 {[%emt 0:00:06]} 17. b6 {[%emt 0:02:25]} Nxb6 {[%emt 0:05:51]} 18. cxb6 Bxb6 {[%emt 0:00:01]} 19. O-O {[%emt 0:03:02]} g5 {[%emt 0:02:15]} 20. Bh2 {[%emt 0:00:34]} f5 {[%emt 0:00:59]} 21. Be5 {[%emt 0:00:54]} Rf8 {[%emt 0:00:57]} 22. f3 {[%emt 0:01:09]} Nf6 {[%emt 0:00:17]} 23. Nc5 {[%emt 0:02:31]} Bxc5 {[%emt 0:00:51]} 24. dxc5 {[%emt 0:00:01]} Nd7 {[%emt 0:01:57]} 25. Bd6 {[%emt 0:01:03]} Rf6 {[%emt 0:00:26]} 26. f4 {[%emt 0:01:41]} gxf4 {[%emt 0:00:47]} 27. exf4 {[%emt 0:00:07]} a6 {[%emt 0:00:35]} 28. Ra3 {[%emt 0:01:00]} b6 {[%emt 0:03:30]} 29. cxb6 {[%emt 0:01:08]} Nxb6 {[%emt 0:00:02]} 30. Rxa6 {[%emt 0:00:55]} Rxa6 {[%emt 0:00:08]} 31. Bxa6 {[%emt 0:00:02]} Na4 {[%emt 0:01:40]} 32. b3 {[%emt 0:01:54]} Nc3 {[%emt 0:00:46]} 33. Rc1 {[%emt 0:00:46]} Ne4 {[%emt 0:00:57]} 34. Be5 {[%emt 0:00:46]} Rf7 {[%emt 0:00:33]} 35. Rxc6 {[%emt 0:00:17]} Re7 {[%emt 0:00:44]} 36. b4 {[%emt 0:00:56]} Re8 {[%emt 0:00:49]} 37. b5 {[%emt 0:01:12]} Nf6 {[%emt 0:00:16]} 38. b6 {[%emt 0:01:02]} Nd7 {[%emt 0:00:41]} 39. b7 {[%emt 0:00:22]} Kh7 {[%emt 0:00:51]} 40. Rc7 {[%emt 0:00:00]} Nxe5 {[%emt 0:00:00]} 41. fxe5 {[%emt 0:01:19]} 1-0

[Event "Polish Youth G16 Championship 2023"]
[Site "Jastrzebia Gora"]
[Date "2023.03.14"]
[Round "4.22"]
[White "Idzior, Izabela"]
[Black "Domeradzka, Karolina"]
[Result "0-1"]
[ECO "B35"]
[WhiteElo "1287"]
[BlackElo "1194"]
[Annotator "NA RC COMBH"]
[PlyCount "80"]
[EventDate "2023.03.11"]
[EventType "swiss"]
[EventCountry "POL"]
[SourceTitle "playchess.com"]
[Source "ChessBase"]
[SourceQuality "1"]
[TimeControl "40/5400+30:1800+30"]

1. e4 {[%emt 0:00:03]} c5 {[%emt 0:00:01]} 2. Nf3 {[%emt 0:00:06]} g6 {[%emt 0:00:02]} 3. d4 {[%emt 0:00:08]} cxd4 {[%emt 0:00:02]} 4. Nxd4 {[%emt 0:00:06]} Nc6 {[%emt 0:00:03]} 5. Nc3 {[%emt 0:00:15]} Bg7 {[%emt 0:00:02]} 6. Be3 {[%emt 0:00:08]} Nf6 {[%emt 0:00:05]} 7. Bc4 {[%emt 0:00:18]} O-O {[%emt 0:00:25]} 8. f3 {[%emt 0:00:04]} Qb6 {[%emt 0:00:09]} 9. Ncb5 {[%emt 0:16:33]} a6 {[%emt 0:04:17]} 10. Nf5 {[%emt 0:01:36]} Qd8 {[%emt 0:01:48]} 11. Nh6+ {[%emt 0:00:18]} Bxh6 {[%emt 0:01:35]} 12. Bxh6 {[%emt 0:01:55]} axb5 {[%emt 0:00:13]} 13. Bxf8 {[%emt 0:00:25]} bxc4 {[%emt 0:02:49]} 14. Bh6 {[%emt 0:00:16]} d5 {[%emt 0:01:13]} 15. exd5 {[%emt 0:01:11]} Nxd5 {[%emt 0:01:30]} 16. c3 {[%emt 0:01:38]} Be6 {[%emt 0:01:41]} 17. Qe2 {[%emt 0:02:55]} b5 {[%emt 0:01:21]} 18. h4 {[%emt 0:00:14]} Qc7 {[%emt 0:00:19]} 19. Qd2 {[%emt 0:08:55]} Ne5 {[%emt 0:01:25]} 20. Qd4 {[%emt 0:05:47]} Nd3+ 21. Kd2 Qe5 {[%emt 0:07:13]} 22. Qxe5 {[%emt 0:01:56]} Nxe5 {[%emt 0:00:04]} 23. h5 {[%emt 0:00:29]} Nd3 {[%emt 0:04:49]} 24. hxg6 {[%emt 0:05:53]} fxg6 {[%emt 0:00:51]} 25. b3 {[%emt 0:00:16]} Ra3 {[%emt 0:02:28]} 26. bxc4 {[%emt 0:10:27]} bxc4 {[%emt 0:02:13]} 27. Rhb1 {[%emt 0:00:24]} Kf7 {[%emt 0:05:46]} 28. Rb8 {[%emt 0:01:14]} Bd7 {[%emt 0:01:40]} 29. Rf8+ {[%emt 0:01:26]} Ke6 {[%emt 0:00:04]} 30. Bg7 {[%emt 0:01:15]} h5 {[%emt 0:01:53]} 31. Bd4 {[%emt 0:01:30]} Kd6 {[%emt 0:01:38]} 32. Rg8 {[%emt 0:01:47]} Bf5 {[%emt 0:01:42]} 33. Rd8+ {[%emt 0:07:44]} Kc6 {[%emt 0:01:25]} 34. Rg8 {[%emt 0:03:51]} e5 {[%emt 0:00:56]} 35. g4 {[%emt 0:03:41]} exd4 {[%emt 0:01:14]} 36. gxf5 {[%emt 0:00:09]} dxc3+ {[%emt 0:01:00]} 37. Ke2 {[%emt 0:00:41]} gxf5 {[%emt 0:00:29]} 38. Rc8+ {[%emt 0:03:35]} Kb5 {[%emt 0:05:28]} 39. Rb1+ {[%emt 0:01:09]} N5b4 {[%emt 0:02:22]} 40. Rb8+ {[%emt 0:00:25]} Kc5 {[%emt 0:00:04]} 0-1

[Event "Polish Youth G16 Championship 2023"]
[Site "Jastrzebia Gora"]
[Date "2023.03.14"]
[Round "4.23"]
[White "Racis, Dominika"]
[Black "Lach, Alicja"]
[Result "1-0"]
[ECO "A56"]
[WhiteElo "1201"]
[BlackElo "1231"]
[Annotator "NA COMBH"]
[PlyCount "67"]
[EventDate "2023.03.11"]
[EventType "swiss"]
[EventCountry "POL"]
[SourceTitle "playchess.com"]
[Source "ChessBase"]
[SourceQuality "1"]
[TimeControl "40/5400+30:1800+30"]

1. d4 Nf6 2. c4 c5 3. Nf3 b5 4. e3 bxc4 5. Bxc4 d5 6. Bb5+ Bd7 7. Bxd7+ Qxd7 8. Ne5 Qc7 9. Nc3 e6 10. Qa4+ Nbd7 11. Nb5 Qb8 12. Nc6 Qb7 13. Qa6 Rb8 14. Nxb8 Qxb8 15. dxc5 Bxc5 16. Bd2 Ne4 17. Rc1 O-O 18. Ba5 Bb6 19. Bxb6 axb6 20. O-O Ndc5 21. Qa3 Nd2 22. Rfd1 Nc4 23. Qb4 Qe5 24. Nd4 Qc7 25. b3 Ne5 26. Nb5 Qd7 27. Rc3 Ned3 28. Rcxd3 Nxd3 29. Rxd3 Rc8 30. Rc3 h6 31. Rxc8+ Qxc8 32. Qc3 Qd7 33. a4 f6 34. Qc2 1-0

[Event "Polish Youth G16 Championship 2023"]
[Site "Jastrzebia Gora"]
[Date "2023.03.15"]
[Round "5.1"]
[White "Bar, Klaudia"]
[Black "Szczotka, Klara"]
[Result "1/2-1/2"]
[ECO "B12"]
[WhiteElo "1731"]
[BlackElo "1739"]
[Annotator "NA RC COMBH"]
[PlyCount "61"]
[EventDate "2023.03.11"]
[EventType "swiss"]
[EventCountry "POL"]
[SourceTitle "playchess.com"]
[Source "ChessBase"]
[SourceQuality "1"]
[TimeControl "40/5400+30:1800+30"]

1. e4 {[%emt 0:00:02]} c6 {[%emt 0:00:03]} 2. d4 {[%emt 0:00:04]} d5 {[%emt 0:00:03]} 3. e5 {[%emt 0:00:04]} c5 {[%emt 0:00:04]} 4. dxc5 {[%emt 0:00:04]} e6 {[%emt 0:00:03]} 5. a3 {[%emt 0:00:08]} Bxc5 {[%emt 0:00:14]} 6. b4 {[%emt 0:00:16]} Be7 {[%emt 0:00:08]} 7. Qg4 {[%emt 0:00:33]} g6 {[%emt 0:00:12]} 8. Nf3 {[%emt 0:00:34]} a5 {[%emt 0:00:26]} 9. b5 {[%emt 0:02:05]} Nd7 {[%emt 0:01:49]} 10. Bb2 {[%emt 0:11:55]} Qc7 {[%emt 0:04:43]} 11. Bd3 {[%emt 0:03:41]} h5 {[%emt 0:03:45]} 12. Qf4 {[%emt 0:02:12]} Nh6 {[%emt 0:01:10]} 13. Nbd2 {[%emt 0:01:36]} Nc5 {[%emt 0:02:39]} 14. Rc1 {[%emt 0:06:15]} a4 {[%emt 0:05:04]} 15. Be2 {[%emt 0:01:51]} Nf5 {[%emt 0:10:59]} 16. c4 {[%emt 0:02:36]} Qd8 {[%emt 0:03:55]} 17. h4 {[%emt 0:07:42]} b6 {[%emt 0:13:15]} 18. Rd1 {[%emt 0:06:13]} Bb7 {[%emt 0:15:05]} 19. Ng5 {[%emt 0:08:26]} Rf8 {[%emt 0:12:14]} 20. Ndf3 {[%emt 0:07:40]} Qc7 {[%emt 0:02:09]} 21. O-O {[%emt 0:06:51]} O-O-O {[%emt 0:03:42]} 22. Nh7 {[%emt 0:04:45]} Rh8 {[%emt 0:01:05]} 23. Nhg5 {[%emt 0:00:29]} Rhf8 {[%emt 0:00:50]} 24. Nh7 {[%emt 0:00:11]} Rh8 {[%emt 0:00:01]} 25. Nhg5 {[%emt 0:00:16]} Rhf8 {[%emt 0:00:19]} 26. Nh7 {[%emt 0:00:20]} Rh8 {[%emt 0:00:01]} 27. Nhg5 {[%emt 0:00:07]} Rhf8 {[%emt 0:00:00]} 28. Nh7 {[%emt 0:00:10]} Rh8 {[%emt 0:00:01]} 29. Nhg5 {[%emt 0:00:07]} Rhf8 {[%emt 0:00:08]} 30. Nh7 {[%emt 0:00:10]} Rh8 {[%emt 0:00:01]} 31. Nhg5 {[%emt 0:00:11]} 1/2-1/2